{"text_format":"1","workbook":"xlsx","n_sheets":34,"sheets":["System Diagram","MetricsDaytypeOccupancy","MetricsOccupancyMonthYr","MetricsDaytypeMonthYr","MetricsPerSF","ptUpdateEvent","Bldg1","Subsystems","Components","ComponentsNormalize","Components_kWCalc","Components_tonsWCalc","ReTuning_CP","ReTuning_AHU","ReTuning_AHU_BAK","Retuning_AHU_Econ","Retuning_AHU_EconAll","Retuning_AHU_OA","Retuning_AHU_SP","Retuning_AHU_HeC","Retuning_AHU_SA","Retuning_Zone","Retuning_ZonesAll","ReTuning_AHUxy","ReTuning_CPsAll","ReTuning_AHUsAll","ReTuning_AHUxyAll","Retuning_ChartSummary","PointDefinition","wsPtsList","MenuSheet","Lists","HolidayList","AxisLabelList"],"not_rendered":{"charts":0,"images":2,"macros":1,"external_links":0,"defined_names":23,"comments":2,"pivot_tables":0},"unopened":[],"bounds":{"document_bytes":16777216,"sheet_cells":100000,"rows_first":2000,"rows_last":500,"rows_between":2000,"halvings":0,"cell_chars":16384,"cell_head_chars":4096},"cells_cut":0,"cells_raw":0,"read":"whole","date_system":"1900"}

{"sheet":"System Diagram","index":0,"n_rows":0,"n_cols":0,"rows_kept":0,"cut":false,"hidden":false,"merged":[]}

{"sheet":"MetricsDaytypeOccupancy","index":1,"n_rows":0,"n_cols":0,"rows_kept":0,"cut":false,"hidden":false,"merged":[]}

{"sheet":"MetricsOccupancyMonthYr","index":2,"n_rows":0,"n_cols":0,"rows_kept":0,"cut":false,"hidden":false,"merged":[]}

{"sheet":"MetricsDaytypeMonthYr","index":3,"n_rows":0,"n_cols":0,"rows_kept":0,"cut":false,"hidden":false,"merged":[]}

{"sheet":"MetricsPerSF","index":4,"n_rows":0,"n_cols":0,"rows_kept":0,"cut":false,"hidden":false,"merged":[]}

{"sheet":"ptUpdateEvent","index":5,"n_rows":0,"n_cols":0,"rows_kept":0,"cut":false,"hidden":false,"merged":[]}

{"sheet":"Bldg1","index":6,"n_rows":19,"n_cols":12,"rows_kept":19,"cut":false,"hidden":false,"merged":[]}
[null,null,null,"Input fixed flows as well as fixed V and Ph."]
[null,{"$f":"COUNTA(G17:AF41)","v":9},{"$f":"COUNTA(G18:L19)","v":4},"Should data be kept separate from output file?"]
[null,null,null,"Can we have them enter the list of equipment first, and use that to filter the options for mapping?"]
[null,null,null,"Give list of points up front, perhaps by type of chart(s) desired"]
[null,null,null,"Use full point names (non-shorthand, but only maybe  user's names) in metrics and charts."]
[null,null,null,"Add separate type of weather data for bldg vs. NWS or other."]
[null,null,null,"Give users options to have a different name than EMS or tool name"]
[]
[]
[]
[]
[]
[]
[null,null,null,null,null,null,"kW",null,"therms","therms/hr"]
[]
["Count","Order 1","Bldg Category","SubCategory","Component","Component Shorthand","kW","kWh","th","th/hr","kBtu","TempOa"]
[null,null,null,"Building","Total","BldgTot",{"$f":"$F17&\"_\"&G$16","v":"BldgTot_kW"},null,{"$f":"$F17&\"_\"&I$16","v":"BldgTot_th"},{"$f":"$F17&\"_\"&J$16","v":"BldgTot_th/hr"},{"$f":"$F17&\"_\"&K$16","v":"BldgTot_kBtu"},"Bldg_Oa"]
[{"$f":"COUNTA($G18:$L18)","v":2},1,null,"Elec","Meter","ElecMtr",{"$f":"$F18&\"_\"&G$16","v":"ElecMtr_kW"},{"$f":"$F18&\"_\"&H$16","v":"ElecMtr_kWh"}]
[{"$f":"COUNTA($G19:$L19)","v":2},2,null,"NaGas","Meter","NaGasMtr",null,null,{"$f":"$F19&\"_\"&I$16","v":"NaGasMtr_th"},{"$f":"$F19&\"_\"&J$16","v":"NaGasMtr_th/hr"}]

{"sheet":"Subsystems","index":7,"n_rows":9,"n_cols":10,"rows_kept":9,"cut":false,"hidden":false,"merged":[]}
["Subsystems",null,"Bldg","Meters","Cooling Plant","Heating Plant","CHW Distribution","HW Distribution","AHU","Zone"]
["Bldg",null,"Ambient","Meter_Elec","Chiller","Boiler","Chilled_Water","Hot_Water","AHU","Terminal"]
["Meters",null,null,"Meter_NaGas","Pump_CHW_Evap","Pump_HoW_Pri","Pump_CHW_Sec","Pump_HoW_Sec","Fan_Supply","Zone"]
["Cooling Plant",null,null,null,"Tower",null,null,null,"Fan_Return"]
["Heating Plant",null,null,null,"Tower_Fan",null,null,null,"Coil_Cooling"]
["CHW Distribution",null,null,null,"Pump_CW",null,null,null,"Coil_Heating"]
["HW Distribution",null,null,null,null,null,null,null,"Dampers"]
["AHU"]
["Zone"]

{"sheet":"Components","index":8,"n_rows":12,"n_cols":22,"rows_kept":12,"cut":false,"hidden":false,"merged":[]}
["Ambient","Meter_Elec","Meter_NaGas","Chiller","Pump_CHW_Evap","Tower","Tower_Fan","Pump_CW","Boiler","Pump_HoW_Pri","Chilled_Water","Pump_CHW_Sec","Hot_Water","Pump_HoW_Sec","AHU","Fan_Supply","Fan_Return","Coil_Cooling","Coil_Heating","Dampers","Terminal","Zone"]
["Bldg_TempOa","ElecMtr_kW","NaGasMtr_th","Chlr_Amps","Pmp_ChW_Evap_Amps","Twr_Amps","Twr_Fan_Amps","Pmp-CondW_Amps","Blr_th","Pmp_HoW_Pri_Amps","ChW_TempIn","Pmp_ChW_Sec_Amps","HoW_TempIn","Pmp_HoW_Sec_Amps","AHU_DuctStcPres","AHU_Fan_S_Amps","AHU_Fan_R_Amps","AHU_CC_W_TempIn","AHU_HeC_W_TempIn","AHU_Dmpr_OA_%op","Z_Tl_Dmpr_%op","Z_Temp"]
[null,"ElecMtr_kWh","NaGasMtr_th/hr","Chlr_kW","Pmp_ChW_Evap_kW","Twr_kW","Twr_Fan_kW","Pmp-CondW_kW","Blr_th/hr","Pmp_HoW_Pri_kW","ChW_TempOut","Pmp_ChW_Sec_kW","HoW_TempOut","Pmp_HoW_Sec_kW","AHU_DuctStcPresSp","AHU_Fan_S_kW","AHU_Fan_R_kW","AHU_CC_W_TempOut","AHU_HeC_W_TempOut","AHU_Dmpr_RA_%op","Z_Tl_Rht%","Z_TempSP"]
[null,null,null,"Chlr_%Spd","Pmp_ChW_Evap_PresIn","Twr_TempIn","Twr_Fan_%Spd","Pmp-CondW_PresIn","Blr_TempIn","Pmp_HoW_Pri_PresIn","ChW_dPres","Pmp_ChW_Sec_%Spd","HoW_dPres","Pmp_HoW_Sec_%Spd","AHU_TempOa","AHU_Fan_S_%Spd","AHU_Fan_R_%Spd","AHU_Vlv_CC_%op","AHU_Vlv_HeC_%op","AHU_Dmpr_ExA_%op",null,"Z_Occ_Status"]
[null,null,null,"Chlr_Hz","Pmp_ChW_Evap_PresOut","Twr_TempOut","Twr_Fan_Hz","Pmp-CondW_PresOut","Blr_TempOut","Pmp_HoW_Pri_PresOut","ChW_dPresSp","Pmp_ChW_Sec_Hz","HoW_dPresSp","Pmp_HoW_Sec_Hz","AHU_TempRa","AHU_Fan_S_Hz","AHU_Fan_R_Hz","AHU_CC_W_gpm","AHU_HeC_W_gpm","AHU_OA_%"]
[null,null,null,"Chlr_ChW_TempIn","Pmp_ChW_Evap_gpm","Twr_Status","Twr_Fan_Status","Pmp-CondW_gpm","Blr_TempSp","Pmp_HoW_Pri_gpm","ChW_TempDiff","Pmp_ChW_Sec_PresIn","HoW_TempDiff","Pmp_HoW_Sec_PresIn","AHU_TempMa","AHU_Fan_S_cfm","AHU_Fan_R_cfm","AHU_CC_A_TempIn","AHU_HeC_A_TempIn"]
[null,null,null,"Chlr_ChW_TempOut","Pmp_ChW_Evap_Status",null,null,"Pmp_CondW_Status","Boiler_Status","Pmp_HoW_Pri_Status",null,"Pmp_ChW_Sec_PresOut",null,"Pmp_HoW_Sec_PresOut","AHU_TempSa","Fan_S_Status","Fan_R_Status","AHU_CC_A_TempOut","AHU_HeC_A_TempOut"]
[null,null,null,"Chlr_ChW_TempSp",null,null,null,null,null,null,null,"Pmp_ChW_Sec_gpm",null,"Pmp_HoW_Sec_gpm","AHU_TempSaSp"]
[null,null,null,"Chlr_CW_TempIn",null,null,null,null,null,null,null,"Pmp_ChW_Sec_Status",null,"Pmp_HoW_Sec_Status","AHU_Status"]
[null,null,null,"Chlr_CW_TempOut"]
[null,null,null,"Chlr_CW_TempSp"]
[null,null,null,"Chlr_Status"]

{"sheet":"ComponentsNormalize","index":9,"n_rows":12,"n_cols":11,"rows_kept":12,"cut":false,"hidden":false,"merged":[]}
["NormalizeSF","Normalize_CFMperSF","Normalize_kWperTon","Normalize_gpmPerTon","Normalize WperCFM","Normalize_kWhperSF","IntegrateOverTime","NormalizeSF",null,"Future adds kWperTon (or other load)","Future adds gpmPerTon (or other load)"]
["ElecMtr_kW","AHU_Fan_S_cfm","Chlr_kW","Pmp_ChW_Evap_gpm","AHU_Fan_S_kW","ElecMtr_kWh","ElecMtr_kW","NaGasMtr_th",null,"AHU_Fan_S_kW","AHU_CC_W_gpm"]
["Chlr_kW",null,"Pmp_ChW_Evap_kW","Pmp_ChW_Sec_gpm","AHU_Fan_R_kW",null,null,"NaGasMtr_th/hr",null,"AHU_Fan_R_kW","Pmp_HoW_Pri_gpm"]
["Pmp_ChW_Evap_kW",null,"Twr_kW","Pmp-CondW_gpm",null,null,null,"Blr_th",null,"Pmp_HoW_Pri_kW","Pmp_HoW_Sec_gpm"]
["Twr_kW",null,"Twr_Fan_kW",null,null,null,null,"Blr_th/hr",null,"Pmp_HoW_Sec_kW"]
["Twr_Fan_kW",null,"Pmp-CondW_kW"]
["Pmp-CondW_kW",null,"Pmp_ChW_Sec_kW"]
["Pmp_HoW_Pri_kW"]
["Pmp_ChW_Sec_kW"]
["Pmp_HoW_Sec_kW"]
["AHU_Fan_S_kW"]
["AHU_Fan_R_kW"]

{"sheet":"Components_kWCalc","index":10,"n_rows":3,"n_cols":10,"rows_kept":3,"cut":false,"hidden":false,"merged":[]}
["Chiller","Pump_CHW_Evap","Tower","Tower Fan","Pump_CW","Pump_HW_Pri","Pump_CHW_Sec","Pump_HW_Sec","Fan_Supply","Fan_Return"]
["Chlr_Amps","Pmp_ChW_Evap_Amps","Twr_Amps","Twr_Fan_Amps","Pmp-CondW_Amps","Pmp_HoW_Pri_Amps","Pmp_ChW_Sec_Amps","Pmp_HoW_Sec_Amps","AHU_Fan_S_Amps","AHU_Fan_R_Amps"]
["Chlr_kW","Pmp_ChW_Evap_kW","Twr_kW","Twr_Fan_kW","Pmp-CondW_kW","Pmp_HoW_Pri_kW","Pmp_ChW_Sec_kW","Pmp_HoW_Sec_kW","AHU_Fan_S_kW","AHU_Fan_R_kW"]

{"sheet":"Components_tonsWCalc","index":11,"n_rows":4,"n_cols":8,"rows_kept":4,"cut":false,"hidden":false,"merged":[]}
["Pump_CHW_Evap","Pump_CW","Pump_HW_Pri","Chilled Water","Pump_CHW_Sec","Pump_HW_Sec","Coil_Cooling","Coil_Heating"]
["Pmp_ChW_Evap_gpm","Pmp-CondW_gpm","Pmp_HoW_Pri_gpm","ChW_TempIn","Pmp_ChW_Sec_gpm","Pmp_HoW_Sec_gpm","AHU_CC_W_TempIn","AHU_HeC_W_TempIn"]
[null,null,null,"ChW_TempOut",null,null,"AHU_CC_W_TempOut","AHU_HeC_W_TempOut"]
[null,null,null,null,null,null,"AHU_CC_W_gpm","AHU_HeC_W_gpm"]

{"sheet":"ReTuning_CP","index":12,"n_rows":5,"n_cols":3,"rows_kept":5,"cut":false,"hidden":false,"merged":[]}
["Central Plant","Central Plant","Central Plant"]
["ChW_TempIn","HoW_TempIn","Pmp_ChW_Sec_gpm"]
["ChW_TempOut","HoW_TempOut","Bldg_TempOa"]
["ChW_TempDiff","HoW_TempDiff"]
["Bldg_TempOa","Bldg_TempOa"]

{"sheet":"ReTuning_AHU","index":13,"n_rows":7,"n_cols":10,"rows_kept":7,"cut":false,"hidden":false,"merged":[]}
["AHU","AHU","AHU","AHU","AHU","AHU","AHU","AHU","AHU","AHU"]
["AHU_TempOa","AHU_TempSa","AHU_Dmpr_OA_%op","AHU_TempOa","AHU_Dmpr_OA_%op","AHU_Dmpr_OA_%op","AHU_DuctStcPres","AHU_Fan_S_%Spd","AHU_Fan_R_%Spd","AHU_Fan_S_%Spd"]
["AHU_TempRa","AHU_TempSaSp","AHU_OA_%","AHU_TempRa","AHU_Vlv_CC_%op","AHU_Dmpr_RA_%op","AHU_DuctStcPresSp","AHU_Fan_S_Hz","AHU_Fan_R_Hz","AHU_Fan_S_Hz"]
["AHU_TempMa",null,null,"AHU_Dmpr_OA_%op","AHU_Vlv_HeC_%op","AHU_Dmpr_ExA_%op",null,"AHU_Fan_S_Status","AHU_Fan_R_Status","AHU_Fan_S_Status"]
["AHU_TempSa",null,null,"AHU_Dmpr_RA_%op",null,null,null,"AHU_DuctStcPres",null,"AHU_Fan_R_%Spd"]
[null,null,null,null,null,null,null,null,null,"AHU_Fan_R_Hz"]
[null,null,null,null,null,null,null,null,null,"AHU_Fan_R_Status"]

{"sheet":"ReTuning_AHU_BAK","index":14,"n_rows":7,"n_cols":9,"rows_kept":7,"cut":false,"hidden":false,"merged":[]}
["AHU","AHU","AHU","AHU","AHU","AHU","AHU","AHU","AHU"]
["AHU_TempOa","AHU_TempSa","Pmp_ChW_Sec_gpm","AHU_Dmpr_OA_%op","AHU_Dmpr_OA_%op","AHU_DuctStcPres","AHU_Fan_S_%Spd","AHU_Fan_R_%Spd","AHU_Fan_S_%Spd"]
["AHU_TempRa","AHU_TempSaSp","Bldg_TempOa","AHU_OA_%","AHU_Dmpr_RA_%op","AHU_DuctStcPresSp","AHU_Fan_S_Hz","AHU_Fan_R_Hz","AHU_Fan_S_Hz"]
["AHU_TempMa",null,null,null,"AHU_Dmpr_ExA_%op",null,"AHU_Fan_S_Status","AHU_Fan_R_Status","AHU_Fan_S_Status"]
["AHU_TempSa",null,null,null,null,null,null,null,"AHU_Fan_R_%Spd"]
[null,null,null,null,null,null,null,null,"AHU_Fan_R_Hz"]
[null,null,null,null,null,null,null,null,"AHU_Fan_R_Status"]

{"sheet":"Retuning_AHU_Econ","index":15,"n_rows":7,"n_cols":8,"rows_kept":7,"cut":false,"hidden":false,"merged":[]}
["AHU","AHU","AHU","AHU","AHU","AHU","AHU","AHU"]
["AHU_TempOa","AHU_TempOa","AHU_TempOa","AHU_Dmpr_OA_%op","AHU_TempOa","AHU_TempOa","AHU_TempSaSp","AHU_TempSaSp"]
["AHU_TempRa","AHU_Dmpr_OA_%op","AHU_TempRa","AHU_Vlv_CC_%op","AHU_Dmpr_OA_%op","AHU_TempRa","AHU_TempOa","AHU_TempSa"]
["AHU_TempMa","AHU_OA_%","AHU_Dmpr_OA_%op","AHU_Vlv_HeC_%op",null,"AHU_TempMa","AHU_Vlv_CC_%op","AHU_TempOa"]
["AHU_TempSa",null,null,"AHU_TempOa",null,"AHU_TempSa","AHU_Dmpr_OA_%op","AHU_Dmpr_OA_%op"]
["AHU_OA_%",null,null,null,null,null,null,"AHU_Vlv_CC_%op"]
[null,null,null,null,null,null,null,"AHU_Vlv_HeC_%op"]

{"sheet":"Retuning_AHU_EconAll","index":16,"n_rows":6,"n_cols":1,"rows_kept":6,"cut":false,"hidden":false,"merged":[]}
["AHU"]
["AHU_Dmpr_OA_%op"]
["AHU_TempSa"]
["AHU_Vlv_CC_%op"]
["AHU_TempOa"]
["AHU_Vlv_HeC_%op"]

{"sheet":"Retuning_AHU_OA","index":17,"n_rows":5,"n_cols":2,"rows_kept":5,"cut":false,"hidden":false,"merged":[]}
["AHU","AHU"]
["AHU_TempOa","AHU_TempOa"]
["AHU_Dmpr_OA_%op","AHU_Dmpr_OA_%op"]
["AHU_OA_%","AHU_Status"]
["AHU_Status"]

{"sheet":"Retuning_AHU_SP","index":18,"n_rows":4,"n_cols":5,"rows_kept":4,"cut":false,"hidden":false,"merged":[]}
["AHU","AHU","AHU","AHU","AHU"]
["AHU_DuctStcPres","AHU_DuctStcPres","AHU_Fan_S_%Spd","AHU_Fan_S_%Spd","AHU_Fan_S_%Spd"]
["AHU_DuctStcPresSp","AHU_DuctStcPresSp",null,"AHU_Fan_S_Status","AHU_Fan_R_%Spd"]
[null,"AHU_Fan_S_%Spd",null,"AHU_DuctStcPres"]

{"sheet":"Retuning_AHU_HeC","index":19,"n_rows":7,"n_cols":2,"rows_kept":7,"cut":false,"hidden":false,"merged":[]}
["AHU","AHU"]
["AHU_Vlv_CC_%op","AHU_TempSaSp"]
["AHU_Vlv_HeC_%op","AHU_TempSa"]
["AHU_TempOa","AHU_TempOa"]
[null,"AHU_Dmpr_OA_%op"]
[null,"AHU_Vlv_CC_%op"]
[null,"AHU_Vlv_HeC_%op"]

{"sheet":"Retuning_AHU_SA","index":20,"n_rows":4,"n_cols":2,"rows_kept":4,"cut":false,"hidden":false,"merged":[]}
["AHU","AHU"]
["AHU_TempSa","AHU_TempSa"]
["AHU_TempSaSp","AHU_TempSaSp"]
[null,"AHU_TempOa"]

{"sheet":"Retuning_Zone","index":21,"n_rows":5,"n_cols":3,"rows_kept":5,"cut":false,"hidden":false,"merged":[]}
["Zone","Zone","Zone"]
["Z_Temp","Z_Tl_Rht%","Z_Tl_Dmpr_%op"]
["Z_Tl_Rht%"]
["Z_Tl_Dmpr_%op"]
["Z_Occ"]

{"sheet":"Retuning_ZonesAll","index":22,"n_rows":3,"n_cols":1,"rows_kept":3,"cut":false,"hidden":false,"merged":[]}
["ZoneAlls"]
["Z_Tl_Dmpr_%op"]
["Z_Tl_Rht%"]

{"sheet":"ReTuning_AHUxy","index":23,"n_rows":3,"n_cols":5,"rows_kept":3,"cut":false,"hidden":false,"merged":[]}
["AHU scatter","AHU scatter","AHU scatter","AHU scatter","AHU scatter"]
["AHU_TempOa","AHU_TempOa","AHU_Fan_S_%Spd","AHU_Vlv_CC_%op","AHU_TempSaSp"]
["AHU_TempMa","AHU_Dmpr_OA_%op","AHU_Fan_R_%Spd","AHU_Vlv_HeC_%op","AHU_TempSa"]

{"sheet":"ReTuning_CPsAll","index":24,"n_rows":1,"n_cols":1,"rows_kept":1,"cut":false,"hidden":false,"merged":[]}
["Central Plant"]

{"sheet":"ReTuning_AHUsAll","index":25,"n_rows":1,"n_cols":1,"rows_kept":1,"cut":false,"hidden":false,"merged":[]}
["AHU"]

{"sheet":"ReTuning_AHUxyAll","index":26,"n_rows":1,"n_cols":1,"rows_kept":1,"cut":false,"hidden":false,"merged":[]}
["AHU scatter"]

{"sheet":"Retuning_ChartSummary","index":27,"n_rows":9,"n_cols":22,"rows_kept":9,"cut":false,"hidden":false,"merged":[[1,0,56,19],[8,21,47,27]]}
[]
["The PNNL ReTuning Charts are intended to help users identify opportunities to improve operations and control strategies at the Air-Handling Unit (AHU), Central Plant, and Zone component levels.  When selected from the PNNL Retuning ECAM dropdown menu, each component will have dedicated sheets with charts for analysis.  These charts are generated in accordance with the PNNL Retuning Training Guides, which can be accessed here: www.pnnl.gov/buildingretuning/retuning_measures.stm. Here is a breakdown of the sheets that will be generated, and the corresponding charts in each sheet:\n\nAHU Charts: When selected, this menu item generates sheets for different components of an AHU, which charts in each sheet.  Note that if the data doesn't have all points, the chart will be incomplete, but ECAM will still generate any chart with partial information.\n \n                     \"AHU_Econ\"- This sheet has charts to help analyze economizer operations for the AHU.  Charts generated (in order) include:\n                                              1. OAT, MAT, RAT, SAT, OAF vs. time\n                                              2. OAT, OAD, OAF vs. time\n                                              3. OAT, OAD, RAT vs. time\n                                              4. OAD, CCV, HCV, OAT vs. time\n                                              5. OAT, OAD vs. time\n                                              6. OAT, RAT, MAT, SAT vs. time\n                                              7. SATSP, OAT, CCV, OAD vs. time\n                                              8. SATSP, SAT, OAT, OAD, CCV, HCV vs. time\n                         \"AHU_OA\"- This sheet has charts to help analyze outdoor air operations for the AHU.  Charts generated (in order) include:\n                                              1. OAT, OAD, OAF, Occupancy vs. time\n                                              2. OAT, OAD, Occupancy vs. time\n                         \"AHU_SP\"- This sheet has charts to help analyze static pressure operations for the AHU.  Charts generated (in order) include:\n                                              1. DSP, DSPSP vs. time\n                                              2. DSP, DSPSP, Supply Fan Speed vs. time\n                                              3. Supply Fan Speed, Supply Fan Status, DSP vs. time\n                                              4. Supply Fan Speed, Return Fan Speed vs. time\n                      \"AHU_HeC\"-  This sheet has charts to help analyze AHU heating and cooling operations.  Charts generated (in order) include:\n                                              1. HCV, CCV, OAT vs. time\n                                              2. SATSP, SAT, OAT, OAD, CCV, HCV vs. time\n                         \"AHU_SA\"-  This sheet has charts to help analyze supply air operations for the AHU.  Charts generated (in order) include:\n                                              1. SAT, SATSP vs. time\n                                              2. SAT, SATSP, OAT vs. time\n\nZone Charts: When selected, this menu item generates one sheet per zone mapped in ECAM, and generates the following charts:\n                                              1. Zone Temp, Zone Reheat Valve Signal, Zone Damper Position Signal, Zone Occupancy vs. time\nIn addition, another sheet will be generated that has the following information for all zones mapped in ECAM:\n                                              1. All Zones Damper Position Signals vs. time\n                                              2. All Zones Reheat Valve Signals vs. time\n\nCentral Plant Charts: When selected, this menu item generates the following charts for each chiller and/or boiler system in the building: (These are still in development)\n                                              1. CHWS, CHWR, delta-T, OAT vs. time\n                                              2. CHWS, CHWS SP vs. time\n                                              3. CWS, CWS SP, OAT vs. time\n                                              4. CWS, CWR, delta-T, OAT, OAH, Wet Bulb Temp vs. time\n                                              5. CHW Loop DP, CHW Loop DPSP, CHW Pump VFD Speed vs. time\n                                              6. HWS, HWR, delta-T, OAT vs. time\n                                              7. HWS, HWS SP, OAT vs. time\n                                              8. HWDP, HWDP SP, HW Pump VFD Speed vs. time\n                                              9. CHW Flow, CHW delta-T, CHW Calc. BTU/Tonnage, OAT vs. time\n                                            10. HW Flow, HW delta-T, HW Calc. BTU/Therms, OAT vs. time"]
[]
[]
[]
[]
[]
[]
[null,null,null,null,null,null,null,null,null,null,null,null,null,null,null,null,null,null,null,null,null,"                            Acronyms and Definitions \nAHU Charts:\nOAT - outdoor-air temperature\nMAT - mixed-air temperature\nRAT - return-air temperature\nSAT - supply-air temperature\nSATSP - supply-air temperature set point\nOAF - outdoor-air fraction\nOAD - outdoor-air damper (position signal)\nCCV - cooling-coil valve signal\nHCV - heating-coil valve signal\nDSP - discharge (duct) static pressure\nDSPSP -discharge (duct) static pressure set point\n\n\nCentral Plant Charts:\nCHWS - chilled water supply temperature\nCHWR - chilled water return temperature\nCHW delta - T - chilled water temperature difference  (CHWR-CHWS)\nCHWS SP - chilled water supply temperature set point\nCWS - condenser water supply temperature\nCWS SP - condenser water supply temperature set point\nCWR delta-T - condenser water temperature difference (CWR-CWS)\nOAH - outdoor-air humidity\nCHW Loop DP - chilled water loop differential pressure\nCHW Loop DPSP - chilled water loop differential pressure set point\nHWS - hot water supply temperature\nHWS SP - hot water supply temperature set point\nHWR - hot water return temperature\nHW delta-T - hot water temperature difference (HWS-HWR)\nHWDP - hot water differential pressure\nHWDP SP - hot water differential pressure set point"]

{"sheet":"PointDefinition","index":28,"n_rows":138,"n_cols":5,"rows_kept":138,"cut":false,"hidden":false,"merged":[]}
["Subsystems","Subsystem Components","Components Measurements","Names","Units"]
["Bldg","Ambient","Bldg_TempOA","Outdoor Air Temperature","°F"]
[]
["Meters","Meter_Elec","ElecMtr_kW ","Electric Meter Power Consumption","kiloWatts (kW)"]
[null,null,"ElecMtr_kWh ","Electric Meter Energy Consumption","kiloWatt hours (kWh)"]
[]
["Meters","Meter_NaGas","NaGasMtr_th","Natural Gas Meter Gas Consumption","th= therm= 100,000 Btu"]
[null,null,"NaGasMtr_th/hr ","Natural Gas Meter Energy Consumption","th/hr"]
[]
["Cooling Plant","Chiller","Chlr_Amps ","Chiller Electric Current","Amperes"]
[null,null,"Chlr_kW ","Chiller Power Consumption","kiloWatts (kW)"]
[null,null,"Chlr_%Spd ","Chiller Speed ","% of Full Speed"]
[null,null,"Chlr_Hz  ","Chiller Frequency ","Hertz"]
[null,null,"Chlr_ChW_TempIn ","Chiller Chilled Water Return Temperature ","°F"]
[null,null,"Chlr_ChW_TempOut ","Chiller Chilled Water Supply Temperature","°F"]
[null,null,"Chr_ChW_TempSp","Chiller Chilled Water Supply Temperature Set Point","°F"]
[null,null,"Chlr_CW_TempIn","Chiller Condenser Water Return Temperature","°F"]
[null,null,"Chlr _CW_TempOut ","Chiller Condenser Water Supply Temperature","°F"]
[null,null,"Chlr_CW_TempSp","Chiller Condenser Water Supply Temperature Set Point ","°F"]
[null,null,"Chlr_Status","Chiller Status","On/Off (1,0)"]
[]
["Cooling Plant","Pump_CHW_Evap","Pmp_ChW_Evap_Amps","Chilled Water Pump Evaporation  Current","Amperes"]
[null,null,"Pmp_ChW_Evap_kW","Chilled Water Evaporator Pump   Power Consumption","kiloWatts (kW)"]
[null,null,"Pmp_ChW_Evap_PresIn","Chilled Water Evaporator Pump  Inlet Pressure","inches water gauge, in. w.g."]
[null,null,"Pmp_ChW_Evap_PresOut","Chilled Water Evaporator Pump Outlet  Pressure ","inches water gauge,  in. w.g."]
[null,null,"Pmp_ChW_Evap_gpm","Chilled Water Evaporator Pump  Water Flow rate","Gallons per minute"]
[null,null,"Pmp_ChW_Evap_Status","Chilled Water Evaporator Pump Status","On/Off (1,0)"]
[]
["Cooling Plant","Tower","Twr_Amps","Cooling Tower Electric Current","Amperes"]
[null,null,"Twr_kW","Cooling Tower Power Consumption ","kiloWatts (kW)"]
[null,null,"Twr_TempIn","Cooling Tower Return Temperature ","°F"]
[null,null,"Twr_TempOut ","Cooling Tower Supply Temperature","°F"]
[null,null,"Twr_Status ","Cooling Tower Status","On/Off (1,0)"]
[]
["Cooling Plant","Tower Fan","Twr_Fan_Amps ","Cooling Tower Fan Electric Current","Amperes"]
[null,null,"Twr_Fan_kW ","Cooling Tower Fan Power Consumption ","kiloWatts (kW)"]
[null,null,"Twr_Fan_%Spd","Cooling Tower Fan Speed  ","% of Full Speed"]
[null,null,"Twr_Fan_Hz ","Cooling Tower Fan Frequency ","Hertz"]
[null,null,"Twr_Fan_Status","Cooling Tower Fan Status","On/Off (1,0)"]
[]
["Cooiling Plant","Pump_CW","Pmp_CondW_Amps","Condenser Water Pump Electric Current","Amperes"]
[null,null,"Pmp_CondW_kW","Condenser Water Pump Power Consumption","kiloWatts (kW)"]
[null,null,"Pmp_CondW_PresIn","Condenser Water Pump Inlet Pressure","inches water gauge, in. w.g."]
[null,null,"Pmp_CondW_PresOut","Condenser Water Pump Outlet Pressure ","inches water gauge, in. w.g."]
[null,null,"Pmp_CondW_gpm","Condenser Water Pump Flow rate","Gallons per minute"]
[null,null,"Pmp_CondW_status","Condenser Water Pump  Status","On/Off (1,0)"]
[]
["Heating Plant","Boiler","Blr_th","Boiler Natural Gas Consumption","th= therm= 100,000 Btu"]
[null,null,"Blr_th/hr","Boiler Natural Gas Energy Consumption ","th/hr"]
[null,null,"Blr_TempIn","Boiler Return Temperature  ","°F"]
[null,null,"Blr_TempOut","Boiler Supply Temperature","°F"]
[null,null,"Blr_TempSp","Boiler Supply Temperature Set Point","°F"]
[null,null,"Boiler_Status","Boiler Status"]
[]
["Heating Plant","Pump_HoW_Pri","Pmp_HoW_Pri_Amps","Primary Hot Water Pump Current ","Amperes"]
[null,null,"Pmp_HoW_Pri_kW","Primary Hot Water Pump Power Consumption","kiloWatts (kW)"]
[null,null,"Pmp_HoW_Pri_PresIn","Primary Hot Water Pump Inlet Pressure","inches water gauge, in. w.g."]
[null,null,"Pmp_HoW_Pri_PresOut","Primary Hot Water Pump Outlet Pressure ","inches water gauge, in. w.g."]
[null,null,"Pmp_HoW_Pri_gpm","Primary Hot Water Pump Flow rate","Gallons per Minute"]
[null,null,"Pmp_HoW_Pri_Status","Primary Hot Water Pump Status","On/Off (1,0)"]
[]
["CHW Distribution","Chilled Water","ChW_TempIn","Chilled Water Return Temperature ","°F"]
[null,null,"ChW_TempOut","Chilled Water Supply Temperature ","°F"]
[null,null,"ChW_dPres","Chilled Water Pressure Differential","inches water gauge, in. w.g."]
[null,null,"ChW_dPresSp","Chilled Water Pressure Differential Set Point","inches water gauge, in. w.g."]
[null,null,"ChW_TempDiff","Chilled Water Delta T (Return-Supply)","°F"]
[]
["CHW Distribution","Pump_CHW_Sec","Pmp_ChW_Sec_Amps","Secondary Chilled Water Pump Current","Amperes"]
[null,null,"Pmp_ChW_Sec_kW","Secondary Chilled Water Pump Power Consumption","kiloWatts (kW)"]
[null,null,"Pmp_ChW_Sec_%Sp","Secondary Chilled Water Pump Speed ","% of Full Speed "]
[null,null,"Pmp_ChW_Sec_Hz","Secondary Chilled Water Pump Frequency ","Hertz"]
[null,null,"Pmp_ChW_Sec_PresIn","Secondary Chilled Water Pump Inlet Pressure","inches water gauge, in. w.g."]
[null,null,"Pmp_ChW_Sec_PresOut","Secondary Chilled Water Pump Outlet Pressure","inches water gauge, in. w.g."]
[null,null,"Pmp_ChW_Sec_gpm","Secondary Chilled Water Pump Flow rate","Gallons per minute"]
[null,null,"Pmp_ChW_Sec_Status","Secondary Chilled Water Pump Status","On/Off (1,0)"]
[]
["HW Distribution","Hot Water","HoW_TempIn","Hot Water Return Temperature","°F"]
[null,null,"HoW_TempOut","Hot Water Supply Temperature ","°F"]
[null,null,"HoW_dPres","Hot Water Pressure Differential","inches water gauge, in. w.g."]
[null,null,"HoW_dPresSp","Hot Water  Pressure Differential Set Point ","inches water gauge, in. w.g."]
[null,null,"HoW_TempDiff","Hot Water Delta-T (Supply-Return)","°F"]
[]
["HW Distribution ","Pump_HoW_Sec","Pmp_HoW_Sec_Amps","Secondary Hot Water Pump Current","Amperes"]
[null,null,"Pmp_HoW_Sec_kW","Secondary Hot Water Pump Power Consumption","kiloWatts (kW)"]
[null,null,"Pmp_HoW_Sec_%Spd","Secondary Hot Water Pump Speed ","% of Full Speed"]
[null,null,"Pmp_HoW_Sec_Hz","Secondary Hot Water Pump Frequency ","Hertz"]
[null,null,"Pmp_HoW_Sec_PresIn","Secondary Hot Water Pump Inlet Pressure","inches water gauge, in. w.g."]
[null,null,"Pmp_HoW_Sec_PresOut","Secondary Hot Water Pump Outlet Pressure","inches water gauge, in. w.g."]
[null,null,"Pmp_HoW_Sec_gpm","Secondary Hot Water Pump Flow rate ","Gallons per minute"]
[null,null,"Pmp_HoW_Sec_status","Secondary Hot Water Pump Status","On/Off (1,0)"]
[]
["AHU","AHU","AHU_DuctStcPres ","Air Handling Unit Duct Static Pressure","inches water gauge, in. w.g."]
[null,null,"AHU_DuctStcPresSp ","Air Handling Unit Duct Static Pressure Set Point","inches water gauge, \"w.g."]
[null,null,"AHU_TempOa ","Air Handling Unit Outdoor Air Temperature","°F"]
[null,null,"AHU_TempRa ","Air Handling Unit Return Air Temperature","°F"]
[null,null,"AHU_TempMa","Air Handling Unit Mixed Air Temperature","°F"]
[null,null,"AHU_TempSa ","Air Handling Unit Supply Air Temperature","°F"]
[null,null,"AHU_TempSaSp","Air Handling Unit Supply Air Temperature Set Point","°F"]
[null,null,"AHU_Status ","Air Handling Unit Status","On/Off (1,0)"]
[]
["AHU","Fan Supply","AHU_Fan_S_Amps ","Air Handling Unit Supply Fan Current","Amperes"]
[null,null,"AHU_Fan_S_kW ","Air Handling Unit Supply Fan Power Consumption","kiloWatts (kW)"]
[null,null,"AHU_Fan_S_%Spd","Air Handling Unit Supply Fan Speed","% of Full Speed"]
[null,null,"AHU_Fan_S_Hz ","Air Handling Unit Supply Fan Frequency ","Hertz"]
[null,null,"AHU_Fan_S_cfm ","Air Handling Unit Supply Fan Air Flow rate","Cubic Feet per minute"]
[null,null,"Fan_S_Status","Supply Fan Status","On/Off (1,0)"]
[]
["AHU","Fan Return","AHU_Fan_R_Amps","Air Handling Unit Return Fan Current","Amperes"]
[null,null,"AHU_Fan_R_kW","Air Handling Unit Return Fan Power Consumption","kiloWatts (kW)"]
[null,null,"AHU_Fan_R_%Spd","Air Handling Unit Return Fan Speed ","% of Full Speed"]
[null,null,"AHU_Fan_R_Hz","Air Handling Unit Return Fan Frequency ","Hertz"]
[null,null,"AHU_Fan_R_cfm","Air Handling Return Fan Air Flow rate","Cubic Feet per minute"]
[null,null,"Fan_R_Status","Return Fan Status","On/Off (1,0)"]
[]
["AHU","Coil_Cooling","AHU_CC_W_TempIn ","Air Handling Unit Cooling Coil Water Inlet Temperature","°F"]
[null,null,"AHU_CC_W_TempOut ","Air Handling Cooling Coil Water Outlet Temperature ","°F"]
[null,null,"AHU_Vlv_CC_%op ","Air Handling Unit Cooling Coil Valve Position","% Open"]
[null,null,"AHU_CC_W_gpm","Air Handling Unit Cooling Coil Water Flow rate","Gallons per minute"]
[null,null,"AHU_CC_A_TempIn ","Air Handling Unit Cooling Coil Air Inlet Temperature ","°F"]
[null,null,"AHU_CC_A_TempOut ","Air Handling Unit Cooling Coil Air Outlet Temperature","°F"]
[]
["AHU","Coil_Heating","AHU_HeC_W_TempIn ","Air Handling Unit Heating Coil Water Inlet Temperature","°F"]
[null,null,"AHU_HeC_W_TempOut ","Air Handling Unit Heating Coil Water Outlet Temperature","°F"]
[null,null,"AHU_Vlv_HeC_%op ","Air Handling  Unit Heating Coil Valve Position","% Open"]
[null,null,"AHU_HeC_W_gpm ","Air Handling Unit Heating Coil Water Flow rate","Gallons per minute"]
[null,null,"AHU_HeC_A_TempIn ","Air Handling Unit Heating Coil Air Inlet Temperature","°F"]
[null,null,"AHU_HeC_A_TempOut ","Air Handling Unit Heating Coil Air Outlet Temperature","°F"]
[]
["AHU","Dampers","AHU_Dmpr_OA_%op ","Air Handling Unit Outdoor Air Damper Position ","% Open"]
[null,null,"AHU_Dmpr_RA_%op ","Air Handling Unit Return Air Damper Position","% Open"]
[null,null,"AHU_Dmpr_ExA_%op","Air Handling Unit Exhaust Air Damper Position","% Open"]
[null,null,"AHU_OA_% ","Air Handling Unit Outdoor Air Fraction","%"]
[]
["Zone","Terminal","Z_Tl_Dmpr_%op","Zone VAV Box Damper Position","% Open"]
[null,null,"Z_Tl_Rht% ","Zone VAV Reheat Valve Position ","% Open"]
[null,"Zone","Z_Temp ","Zone Temperature","°F"]
[null,null,"Z_TempSP ","Zone Temperature Set Point ","°F"]
[null,null,"Z_Occ_Status","Zone Occupancy Status ","On/Off (1,0)"]

{"sheet":"wsPtsList","index":29,"n_rows":4,"n_cols":7,"rows_kept":4,"cut":false,"hidden":false,"merged":[]}
[]
[]
[]
["Timestamps and Points List",null,null,"Timestamps List",null,null,"Data Points List"]

{"sheet":"MenuSheet","index":30,"n_rows":84,"n_cols":10,"rows_kept":84,"cut":false,"hidden":false,"merged":[]}
["Level","Caption","Position/Macro","Divider","FaceID"]
[1,"E&CAM",10]
[2,"Select &Interval Data","SelectIntervalData",null,10008]
[2,"Definition of &Points","DefinePoints",null,439]
[2,"Create &Schedules","CreateSchedules",null,33]
[2,"Input Dates for Comparison of Pre and Post","CreatePrePostDates",null,1096]
[2,"Select &Monthly Billing Data","SelectBillingData",true,10008]
[2,"&Time Series Charts",null,true,422]
[3,"Point(s) History Chart","CreateHistoryChart",null,422]
[3,"Load Profile by Day&type","CreateLPbyDaytype",null,422]
[3,"Load Profile by Day of Week","CreateLPbyDayOfWeek",null,422]
[3,"Load Profile by &Month-Year","CreateLPbyMonthYr",null,422]
[3,"Load Profile by Date Range (&Pre/Post)","CreateLPbyDateRng",null,422]
[3,"Load Profile by &Year","CreateLPbyYear",null,422]
[3,"Load Profile by &Day","CreateLPbyDay",null,422]
[3,"Create &3d Load Profile","Chart3dColoredDaytypes",null,422]
[3,"Create Energy Colors (&surface chart)","ContourChart",null,422]
[3,"Load Profile &Calendar","CreateCalendarLP",null,422]
[3,"Load Profile as Box Plots","BoxPlotLP",null,434]
[2,"Sca&tter Charts",null,true,430,null,null,null,null,{"$f":"MID(B20,FIND(\"&\",B20)+1,1)","v":"t"}]
[3,"Scatter Chart by &Occupancy","CreateScatterChartByOcc",null,430]
[3,"Scatter Chart by Date Range (&Pre/Post)","CreateScatterChartByDateRng",null,430]
[3,"Toggle Scatter between all timestamps and aggregated values","PureScatter",null,430]
[2,"Load Duration Chart (Point Frequency Distribution)","CreateLoadDurationChart",true,420]
[2,"Chart to Check Input Schedule","ScheduleChart",true,954,null,954,956]
[2,"Matrix Charts",null,true,441]
[3,"Information about Matrix Charts","MatrixSelectedChartsInfo",null,7]
[3,"Matrix Selected Charts","MatrixSelectedCharts",null,441,null,307]
[3,"Matrix All Charts","MatrixAllCharts",null,441]
[3,"Re-Matrix Charts","ChartMatrixCreation(1)",null,441]
[2,"Chart Utilities",null,true]
[3,"Set Scales the Same for a Group of Charts","SetScalesSelectedCharts",null,437]
[2,"Metrics and Data Summaries",null,true,966,502,512,583]
[3,"Metrics for Points &Normalized per Sq. Foot","MetricsDaytypeOccupancySF",null,1081,null,null,null,null,{"$f":"MID(B34,FIND(\"&\",B34)+1,1)","v":"N"}]
[3,"Daytype and Occupancy Metrics","MetricsDaytypeOccupancyR2",null,966]
[3,"Occupancy and Month-Year Combined Metrics","MetricsOccupancyMonthYr2",null,966]
[3,"Daytype and Month-Year Combined Metrics","MetricsDaytypeMonthYr2",null,966]
[3,"Information about Data Summary","DataSummaryInfo",null,7]
[3,"Summarize Data","DataSummaryRawData",null,502,null,244,586,808]
[3,"Summarize Data from PivotTable","DataSummaryPivotTable",null,502]
[2,"PNNL &Re-Tuning",null,true,null,null,null,null,null,{"$f":"MID(B41,FIND(\"&\",B41)+1,1)","v":"R"}]
[3,"Central Plant Charts","ReTuningCP",null,422]
[3,"&AHU Charts","ReTuningPNNLAirHandler",null,422,null,null,null,null,{"$f":"MID(B43,FIND(\"&\",B43)+1,1)","v":"A"}]
[3,"&Zone Charts","ReTuningPNNLZone",null,422,null,null,null,null,{"$f":"MID(B44,FIND(\"&\",B44)+1,1)","v":"Z"}]
[3,"AHU Scatter Charts","ReTuningAHUxy",null,430]
[3,"Economizers for All AHUs","ReTuningEcon",null,422]
[3,"Chart &Summary","ReTuningChartSummary",null,422,null,null,null,null,{"$f":"MID(B47,FIND(\"&\",B47)+1,1)","v":"S"}]
[2,"Measurement and Verification General Inputs",null,true]
[3,"Input Desired Model and Savings Confidence Level","InputConfLevel"]
[3,"Input Values For ASHRAE Fractional Savings Uncertainty","FracSvgsInputs"]
[3,"Define New Model Categorical Variables","CombineCategories"]
[2,"Interval Data-Driven Models and M and &V",null,null,null,null,null,null,null,{"$f":"MID(B52,FIND(\"&\",B52)+1,1)","v":"V"}]
[3,"Create Load Profile by Day of Week and Evaluate Daytypes","DaytypingControl"]
[3,"Evaluate Daytypes (active sheet has LP by Day of Week)","CheckBoxesCreation1"]
[3,"Create Baseline Models Only","MVbaseline"]
[3,"Create Post Models Only","MVpost"]
[3,"Create Baseline and Post Models","MVcontrol"]
[3,"Evaluate Savings for Post Period","Savings"]
[3,"Bring in TMY3 Weather for Annualization","PrepTMY3data"]
[3,"Annualize Baseline Using TMY3 Weather","BaselineAnnual"]
[3,"Annualize Post Using TMY3 Weather","PostAnnual"]
[3,"Annualize Pre, Post, and Savings Using TMY3","SavingsAnnual"]
[3,"Create Matrix of Scatter Charts with Models","MatrixModelCharts",null,441]
[2,"Monthly &Billing Data Models and M and V",null,null,null,null,null,null,null,{"$f":"MID(B64,FIND(\"&\",B64)+1,1)","v":"B"}]
[3,"Create Baseline Monthly Models Only","MVbaselineMonthly"]
[3,"Create Post Monthly Models Only","MVpostMonthly"]
[3,"Create Baseline and Post Monthly Models","MVcontrolMonthly"]
[3,"Evaluate Savings for Post Period Using Monthly Model","SavingsMonthly"]
[3,"Bring in Monthly TMY3 Weather for Annualization","TMY3monthlySheet"]
[3,"Annualize Baseline Using Monthly TMY3 Weather","BaselineAnnualMonthly"]
[3,"Annualize Post Using Monthly TMY3 Weather","PostAnnualMonthly"]
[3,"Annualize Pre, Post, and Savings Using Monthly TMY3","SavingsAnnualMonthly"]
[2,"Strategic Energy Management and MT&R",null,true]
[3,"SEM-MT&R with Interval Data","SEMinterval"]
[3,"SEM-MT&R with Monthly Billing Data","SEMmonthly"]
[2,"ECAM &Utilities",null,true,null,null,null,null,null,{"$f":"MID(B76,FIND(\"&\",B76)+1,1)","v":"U"}]
[3,"Resample Data","ResampleStart",null,452]
[3,"Resample To Get Avg Temp for Billing Data ","ResampleMonthlyStart",null,452]
[3,"Convert Table format to ECAM List format","CombineTableIntoList",null,5895]
[3,"Create &Bin Data from Temperatures","AddBinTemps",null,36]
[3,"\"Data\" worksheet was changed","AddNewData",null,213,null,246,3881,2475]
[3,"Copy Worksheet and Update ECAM Chart Source","CopySheetAndUpdateChartSource",null,585]
[2,"ECAM Help","ShowHelp",true,926]
[2,"&About ECAM","AboutECAM",true,7,null,null,null,null,{"$f":"MID(B84,FIND(\"&\",B84)+1,1)","v":"A"}]

{"sheet":"Lists","index":31,"n_rows":50,"n_cols":41,"rows_kept":50,"cut":false,"hidden":false,"merged":[]}
["Months","MonthDays","Days","WeekdayNum","Weekday",null,null,null,"Schedule Times",null,null,"Day Schedules","OccStart","OccStop",null,"Week Schedules","Mon","Tue","Wed","Thu","Fri","Sat","Sun","Hol",null,"Year Schedules","Starting Date","Ending Date","Week Schedule","Starting Day","Ending Day",null,"BldgSF","BldgSF1000",null,"StartupStart","ShutdownEnd",null,"yes_no","fuel_type","elec_heat_type"]
["January",31,1,1,"Mon",null,null,null,{"$f":"LOWER(TEXT(J2,\"h:mm am/PM\"))","v":"12:00 am"},"00:00:00",null,"DaySchedule1","00:00:00","23:59:00",null,"All Year","DaySchedule1","DaySchedule2","DaySchedule2","DaySchedule2","DaySchedule2","DaySchedule3","DaySchedule3","DaySchedule4",null,1,"2006-01-01","2006-12-31","Quarter A",{"$f":"1+INT(AA2)-DATE(YEAR(AA2),1,1)","v":1},365,null,100000,{"$f":"BldgArea/1000","v":{"$error":"#NAME?"}},null,"12:00:00","12:00:00",null,"yes","electric","resistance"]
["February",28,2,2,"Tue",null,null,null,{"$f":"LOWER(TEXT(J3,\"h:mm am/PM\"))","v":"12:30 am"},"00:30:00",null,"DaySchedule2","00:00:00","23:59:00",null,"Quarter A","DaySchedule1","DaySchedule1","DaySchedule1","DaySchedule1","DaySchedule1","DaySchedule2","DaySchedule2","DaySchedule3",null,2,null,null,null,0,0,null,null,null,null,"12:00:00","12:00:00",null,"no","gas","heat pump"]
["March",31,3,3,"Wed",null,null,null,"1:00 am","01:00:00",null,"DaySchedule3","00:00:00","23:59:00",null,"Quarter B","DaySchedule2","DaySchedule2","DaySchedule2","DaySchedule2","DaySchedule2","DaySchedule2","DaySchedule2","DaySchedule2",null,3,null,null,null,0,0,null,null,null,null,"12:00:00","12:00:00",null,null,null,"other"]
["April",30,4,4,"Thu",null,null,null,"1:30 am","01:30:00",null,"DaySchedule4","00:00:00","23:59:00",null,"Quarter C","DaySchedule1","DaySchedule2","DaySchedule1","DaySchedule2","DaySchedule1","DaySchedule2","DaySchedule2","DaySchedule4",null,4,null,null,null,0,0,null,null,null,null,"12:00:00","12:00:00"]
["May",31,5,5,"Fri",null,null,null,"2:00 am","02:00:00",null,"DaySchedule5","00:00:00","23:59:00",null,"Quarter D","DaySchedule4","DaySchedule4","DaySchedule1","DaySchedule1","DaySchedule1","DaySchedule2","DaySchedule3","DaySchedule1",null,5,null,null,null,0,0,null,null,null,null,"12:00:00","12:00:00"]
["June",30,6,6,"Sat",null,null,null,"2:30 am","02:30:00",null,"DaySchedule6","00:00:00","23:59:00",null,null,null,null,null,null,null,null,null,null,null,null,null,null,null,null,null,null,null,null,null,"12:00:00","12:00:00"]
["July",31,7,7,"Sun",null,null,null,"3:00 am","03:00:00",null,"DaySchedule7","00:00:00","23:59:00",null,null,null,null,null,null,null,null,null,null,null,null,null,null,null,null,null,null,null,null,null,"12:00:00","12:00:00"]
["August",31,8,null,null,null,null,null,"3:30 am","03:30:00",null,"DaySchedule8","00:00:00","23:59:00",null,null,null,null,null,null,null,null,null,null,null,null,null,null,null,null,null,null,null,null,null,"12:00:00","12:00:00"]
["September",30,9,null,null,null,null,null,"4:00 am","04:00:00",null,"DaySchedule9","00:00:00","23:59:00",null,null,null,null,null,null,null,null,null,null,null,null,null,null,null,null,null,null,null,null,null,"12:00:00","12:00:00"]
["October",31,10,null,null,null,null,null,"4:30 am","04:30:00",null,"DaySchedule10","00:00:00","23:59:00",null,null,null,null,null,null,null,null,null,null,null,null,null,null,null,null,null,null,null,null,null,"12:00:00","12:00:00"]
["November",30,11,null,null,null,null,null,"5:00 am","05:00:00"]
["December",31,12,null,null,null,null,null,"5:30 am","05:30:00"]
[null,null,13,null,null,null,null,null,"6:00 am","06:00:00"]
[null,null,14,null,null,null,null,null,"6:30 am","06:30:00"]
[null,null,15,null,null,null,null,null,"7:00 am","07:00:00"]
[null,null,16,null,null,null,null,null,"7:30 am","07:30:00"]
[null,null,17,null,null,null,null,null,"8:00 am","08:00:00"]
[null,null,18,null,null,null,null,null,"8:30 am","08:30:00",null,null,null,null,null,null,null,"number of scheds",null,"Week Sch","Weekday","Day Sch","Day Schedule","OccStart","OccStop","Occ?","Occ2","Occupancy"]
[null,null,19,null,null,null,null,null,"9:00 am","09:00:00",null,null,null,null,null,null,"2006-07-01T14:30:00",{"$f":"COUNTA($AB$2:$AB$6)","v":1},{"$f":"MATCH($Q20,OFFSET(Lists!$AA$2,0,0,$R$20,1),1)","v":1},{"$f":"INDEX($AC$2:$AC$6,$S20)","v":"Quarter A"},{"$f":"WEEKDAY($Q20,2)","v":6},{"$f":"INDEX($Q$2:$X$6,MATCH($T20,$P$3:$P$6,0),$U20)","v":"DaySchedule3"},{"$f":"INDEX($Q$2:$X$6,MATCH(INDEX($AC$2:$AC$6,MATCH(Q20,OFFSET($AA$2,0,0,$R$20,1),1)),$P$3:$P$6,0),WEEKDAY($Q20,2))","v":"DaySchedule3"},{"$f":"INDEX(M$2:M$11,MATCH($V20,$L$2:$L$11,0))","v":"00:00:00"},{"$f":"INDEX(N$2:N$11,MATCH($V20,$L$2:$L$11,0))","v":"23:59:00"},{"$f":"IF(AND($Q20-INT($Q20)>$X20,$Q20-INT($Q20)<=$Y20),\"Occ\",\"Unocc\")","v":"Occ"},{"$f":"IF(AND(\n($Q20-INT($Q20))\n>INDEX(M$2:M$11,MATCH(INDEX($Q$2:$X$6,MATCH(INDEX($AC$2:$AC$6,$S20),$P$3:$P$6,0),WEEKDAY($Q20,2)),$L$2:$L$11,0)),\n($Q20-INT($Q20))\n<=INDEX(N$2:N$11,MATCH(INDEX($Q$2:$X$6,MATCH(INDEX($AC$2:$AC$6,$S20),$P$3:$P$6,0),WEEKDAY($Q20,2)),$L$2:$L$11,0))),\n\"Occ\",\"Unocc\")","v":"Occ"},{"$f":"IF(AND($Q20-INT($Q20)>INDEX(M$2:M$11,MATCH($W20,$L$2:$L$11,0)),$Q20-INT($Q20)<=INDEX(N$2:N$11,MATCH($W20,$L$2:$L$11,0))),\"Occ\",\"Unocc\")","v":"Occ"}]
[null,null,20,null,null,null,null,null,"9:30 am","09:30:00",null,null,null,null,null,null,"2006-03-24T22:54:07.612",null,{"$f":"MATCH($Q21,OFFSET($AA$2,0,0,$R$20,1),1)","v":1},{"$f":"INDEX($AC$2:$AC$6,$S21)","v":"Quarter A"},5,{"$f":"INDEX($Q$2:$X$6,MATCH($T21,$P$3:$P$6,0),$U21)","v":"DaySchedule2"},"DaySchedule2",{"$f":"INDEX(M$2:M$11,MATCH($V21,$L$2:$L$11,0))","v":"00:00:00"},{"$f":"INDEX(N$2:N$11,MATCH($V21,$L$2:$L$11,0))","v":"23:59:00"},{"$f":"IF(AND($Q21-INT($Q21)>$X21,$Q21-INT($Q21)<=$Y21),\"Occ\",\"Unocc\")","v":"Occ"},{"$f":"IF(AND(\n($Q21-INT($Q21))\n>INDEX(M$2:M$11,MATCH(INDEX($Q$2:$X$6,MATCH(INDEX($AC$2:$AC$6,$S21),$P$3:$P$6,0),WEEKDAY($Q21,2)),$L$2:$L$11,0)),\n($Q21-INT($Q21))\n<=INDEX(N$2:N$11,MATCH(INDEX($Q$2:$X$6,MATCH(INDEX($AC$2:$AC$6,$S21),$P$3:$P$6,0),WEEKDAY($Q21,2)),$L$2:$L$11,0))),\n\"Occ\",\"Unocc\")","v":"Occ"},"Occ"]
[null,null,21,null,null,null,null,null,"10:00 am","10:00:00",null,null,null,null,null,null,"2006-06-25T19:18:09.800",null,null,null,7,null,"DaySchedule3",null,null,null,null,"Occ"]
[null,null,22,null,null,null,null,null,"10:30 am","10:30:00",null,null,null,null,null,null,"2006-10-27T18:55:35.041",null,null,null,5,null,"DaySchedule2",null,null,null,null,"Occ"]
[null,null,23,null,null,null,null,null,"11:00 am","11:00:00",null,null,null,null,null,null,"2006-04-03T20:16:48.159",null,null,null,1,null,"DaySchedule1",null,null,null,null,"Occ"]
[null,null,24,null,null,null,null,null,"11:30 am","11:30:00",null,null,null,null,null,null,"2006-06-16T15:39:04.118",null,null,null,5,null,"DaySchedule2",null,null,null,null,"Occ"]
[null,null,25,null,null,null,null,null,{"$f":"TEXT(J26,\"h:mm AM/PM\")","v":"12:00 PM"},"12:00:00",null,null,null,null,null,null,"2006-07-04T01:40:52.956",null,null,null,2,null,"DaySchedule2",null,null,null,null,"Occ"]
[null,null,26,null,null,null,null,null,"12:30 PM","12:30:00",null,null,null,null,null,null,"2006-02-10T18:20:02.687",null,null,null,5,null,"DaySchedule2",null,null,null,null,"Occ"]
[null,null,27,null,null,null,null,null,"1:00 PM","13:00:00",null,null,null,null,null,null,"2006-09-15T16:11:13.962",null,null,null,5,null,"DaySchedule2",null,null,null,null,"Occ"]
[null,null,28,null,null,null,null,null,"1:30 PM","13:30:00",null,null,null,null,null,null,"2006-03-31T23:57:52.056",null,null,null,5,null,"DaySchedule2",null,null,null,null,"Occ"]
[null,null,29,null,null,null,null,null,"2:00 PM","14:00:00",null,null,null,null,null,null,"2006-05-09T20:59:55.695",null,null,null,2,null,"DaySchedule2",null,null,null,null,"Occ"]
[null,null,30,null,null,null,null,null,"2:30 PM","14:30:00",null,null,null,null,null,null,"2006-05-20T18:15:32.110",null,null,null,6,null,"DaySchedule3",null,null,null,null,"Occ"]
[null,null,31,null,null,null,null,null,"3:00 PM","15:00:00",null,null,null,null,null,null,"2006-03-04T15:19:13.725",null,null,null,6,null,"DaySchedule3",null,null,null,null,"Occ"]
[null,null,null,null,null,null,null,null,"3:30 PM","15:30:00"]
[null,null,null,null,null,null,null,null,{"$f":"TEXT(J34,\"h:mm AM/PM\")","v":"4:00 PM"},"16:00:00",null,null,null,null,null,null,{"$f":"INT(Q20)-DATE(YEAR(Q20),1,1)","v":181}]
[null,null,null,null,null,null,null,null,"4:30 PM","16:30:00"]
[null,null,null,null,null,null,null,null,"5:00 PM","17:00:00"]
[null,null,null,null,null,null,null,null,"5:30 PM","17:30:00"]
[null,null,null,null,null,null,null,null,"6:00 PM","18:00:00"]
[null,null,null,null,null,null,null,null,"6:30 PM","18:30:00"]
[null,null,null,null,null,null,null,null,"7:00 PM","19:00:00"]
[null,null,null,null,null,null,null,null,"7:30 PM","19:30:00"]
[null,null,null,null,null,null,null,null,"8:00 PM","20:00:00"]
[null,null,null,null,null,null,null,null,"8:30 PM","20:30:00"]
[null,null,null,null,null,null,null,null,"9:00 PM","21:00:00"]
[null,null,null,null,null,null,null,null,"9:30 PM","21:30:00"]
[null,null,null,null,null,null,null,null,"10:00 PM","22:00:00"]
[null,null,null,null,null,null,null,null,"10:30 PM","22:30:00"]
[null,null,null,null,null,null,null,null,"11:00 PM","23:00:00"]
[null,null,null,null,null,null,null,null,"11:30 PM","23:30:00"]
[null,null,null,null,null,null,null,null,"11:59 PM","23:59:00"]

{"sheet":"HolidayList","index":32,"n_rows":304,"n_cols":2,"rows_kept":304,"cut":false,"hidden":false,"merged":[]}
["Date","Legal Holidays"]
["2001-12-31","New Year's Eve"]
["2002-01-01","New Year's Day"]
["2002-01-21","Martin Luther King Day"]
["2002-02-18","President's Day"]
["2002-03-29","Good Friday"]
["2002-03-31","Easter"]
["2002-05-27","Memorial Day"]
["2002-07-04","Independence Day"]
["2002-09-02","Labor Day"]
["2002-10-14","Columbus Day"]
["2002-11-11","Veterans Day"]
["2002-11-28","Thanksgiving Day"]
["2002-11-29","Friday after Thanksgiving"]
["2002-12-24","Christmas Eve"]
["2002-12-25","Christmas"]
["2003-01-01","New Year's Day"]
["2003-01-20","Martin Luther King Day"]
["2003-02-17","President's Day"]
["2003-04-18","Good Friday"]
["2003-04-20","Easter"]
["2003-05-26","Memorial Day"]
["2003-07-04","Independence Day"]
["2003-09-01","Labor Day"]
["2003-10-13","Columbus Day"]
["2003-11-11","Veterans Day"]
["2003-11-27","Thanksgiving Day"]
["2003-11-28","Friday after Thanksgiving"]
["2003-12-24","Christmas Eve"]
["2003-12-25","Christmas"]
["2004-01-01","New Year's Day"]
["2004-01-19","Martin Luther King Day"]
["2004-02-16","President's Day"]
["2004-04-09","Good Friday"]
["2004-04-11","Easter"]
["2004-05-31","Memorial Day"]
["2004-07-04","Independence Day"]
["2004-07-05","Independence Day, celebrated"]
["2004-09-06","Labor Day"]
["2004-10-11","Columbus Day"]
["2004-11-11","Veterans Day"]
["2004-11-25","Thanksgiving Day"]
["2004-11-26","Friday after Thanksgiving"]
["2004-12-23","Christmas Eve, celebrated"]
["2004-12-24","Christmas, holiday"]
["2004-12-25","Christmas"]
["2004-12-31","New Year's Day, celebrated"]
["2005-01-01","New Year's Day"]
["2005-01-17","Martin Luther King Day"]
["2005-02-21","President's Day"]
["2005-03-25","Good Friday"]
["2005-03-27","Easter"]
["2005-05-30","Memorial Day"]
["2005-07-04","Independence Day"]
["2005-09-05","Labor Day"]
["2005-10-10","Columbus Day"]
["2005-11-11","Veterans Day"]
["2005-11-24","Thanksgiving Day"]
["2005-11-25","Friday after Thanksgiving"]
["2005-12-24","Christmas Eve"]
["2005-12-25","Christmas"]
["2005-12-26","Christmas, holiday"]
["2006-01-01","New Year's Day"]
["2006-01-02","New Year's Day, celebrated"]
["2006-01-16","Martin Luther King Day"]
["2006-02-20","President's Day"]
["2006-04-14","Good Friday"]
["2006-04-16","Easter"]
["2006-05-29","Memorial Day"]
["2006-07-04","Independence Day"]
["2006-09-04","Labor Day"]
["2006-10-09","Columbus Day"]
["2006-11-10","Veterans Day, celebrated"]
["2006-11-11","Veterans Day"]
["2006-11-23","Thanksgiving Day"]
["2006-11-24","Friday after Thanksgiving"]
["2006-12-24","Christmas Eve"]
["2006-12-25","Christmas"]
["2007-01-01","New Year's Day"]
["2007-01-15","Martin Luther King Day"]
["2007-02-19","President's Day"]
["2007-04-06","Good Friday"]
["2007-04-08","Easter"]
["2007-05-28","Memorial Day"]
["2007-07-04","Independence Day"]
["2007-09-03","Labor Day"]
["2007-10-08","Columbus Day"]
["2007-11-11","Veterans Day"]
["2007-11-12","Veterans Day, celebrated"]
["2007-11-22","Thanksgiving Day"]
["2007-11-23","Friday after Thanksgiving"]
["2007-12-24","Christmas Eve"]
["2007-12-25","Christmas"]
["2008-01-01","New Year's Day"]
["2008-01-21","Martin Luther King Day"]
["2008-02-18","President's Day"]
["2008-03-21","Good Friday"]
["2008-03-23","Easter"]
["2008-05-26","Memorial Day"]
["2008-07-04","Independence Day"]
["2008-09-01","Labor Day"]
["2008-10-13","Columbus Day"]
["2008-11-11","Veterans Day"]
["2008-11-27","Thanksgiving Day"]
["2008-11-28","Friday after Thanksgiving"]
["2008-12-24","Christmas Eve"]
["2008-12-25","Christmas"]
["2009-01-01","New Year's Day"]
["2009-01-19","Martin Luther King Day"]
["2009-02-16","President's Day"]
["2009-04-10","Good Friday"]
["2009-04-12","Easter"]
["2009-05-25","Memorial Day"]
["2009-07-03","Independence Day, celebrated"]
["2009-07-04","Independence Day"]
["2009-09-07","Labor Day"]
["2009-10-12","Columbus Day"]
["2009-11-11","Veterans Day"]
["2009-11-26","Thanksgiving Day"]
["2009-11-27","Friday after Thanksgiving"]
["2009-12-24","Christmas Eve"]
["2009-12-25","Christmas"]
["2010-01-01","New Year's Day"]
["2010-01-18","Martin Luther King Day"]
["2010-02-15","President's Day"]
["2010-04-02","Good Friday"]
["2010-04-04","Easter"]
["2010-05-31","Memorial Day"]
["2010-07-04","Independence Day"]
["2010-07-05","Independence Day, celebrated"]
["2010-09-06","Labor Day"]
["2010-10-11","Columbus Day"]
["2010-11-11","Veterans Day"]
["2010-11-25","Thanksgiving Day"]
["2010-11-26","Friday after Thanksgiving"]
["2010-12-23","Christmas Eve, celebrated"]
["2010-12-24","Christmas, holiday"]
["2010-12-25","Christmas"]
["2010-12-31","New Year's Day, celebrated"]
["2011-01-01","New Year's Day"]
["2011-01-17","Martin Luther King Day"]
["2011-02-21","President's Day"]
["2011-04-22","Good Friday"]
["2011-04-24","Easter"]
["2011-05-30","Memorial Day"]
["2011-07-04","Independence Day"]
["2011-09-05","Labor Day"]
["2011-10-10","Columbus Day"]
["2011-11-11","Veterans Day"]
["2011-11-24","Thanksgiving Day"]
["2011-11-25","Friday after Thanksgiving"]
["2011-12-24","Christmas Eve"]
["2011-12-25","Christmas"]
["2011-12-26","Christmas, holiday"]
["2012-01-01","New Year's Day"]
["2012-01-02","New Year's Day, celebrated"]
["2012-01-16","Martin Luther King Day"]
["2012-02-20","President's Day"]
["2012-04-06","Good Friday"]
["2012-04-08","Easter"]
["2012-05-28","Memorial Day"]
["2012-07-04","Independence Day"]
["2012-09-03","Labor Day"]
["2012-10-08","Columbus Day"]
["2012-11-11","Veterans Day"]
["2012-11-12","Veterans Day, celebrated"]
["2012-11-22","Thanksgiving Day"]
["2012-11-23","Friday after Thanksgiving"]
["2012-12-24","Christmas Eve"]
["2012-12-25","Christmas"]
["2013-01-01","New Year's Day"]
["2013-01-21","Martin Luther King Day"]
["2013-02-18","President's Day"]
["2013-03-29","Good Friday"]
["2013-03-31","Easter"]
["2013-05-27","Memorial Day"]
["2013-07-04","Independence Day"]
["2013-09-02","Labor Day"]
["2013-10-14","Columbus Day"]
["2013-11-11","Veterans Day"]
["2013-11-28","Thanksgiving Day"]
["2013-11-29","Friday after Thanksgiving"]
["2013-12-24","Christmas Eve"]
["2013-12-25","Christmas"]
["2014-01-01","New Year's Day"]
["2014-01-20","Martin Luther King Day"]
["2014-02-17","President's Day"]
["2014-04-18","Good Friday"]
["2014-04-20","Easter"]
["2014-05-26","Memorial Day"]
["2014-07-04","Independence Day"]
["2014-09-01","Labor Day"]
["2014-10-13","Columbus Day"]
["2014-11-11","Veterans Day"]
["2014-11-27","Thanksgiving Day"]
["2014-11-28","Friday after Thanksgiving"]
["2014-12-24","Christmas Eve"]
["2014-12-25","Christmas"]
["2015-01-01","New Year's Day"]
["2015-01-19","Martin Luther King Day"]
["2015-02-16","President's Day"]
["2015-04-03","Good Friday"]
["2015-04-05","Easter"]
["2015-05-25","Memorial Day"]
["2015-07-03","Independence Day, celebrated"]
["2015-07-04","Independence Day"]
["2015-09-07","Labor Day"]
["2015-10-12","Columbus Day"]
["2015-11-11","Veterans Day"]
["2015-11-26","Thanksgiving Day"]
["2015-11-27","Friday after Thanksgiving"]
["2015-12-24","Christmas Eve"]
["2015-12-25","Christmas"]
["2016-01-01","New Year's Day"]
["2016-01-18","Martin Luther King Day"]
["2016-02-15","President's Day"]
["2016-03-25","Good Friday"]
["2016-03-27","Easter"]
["2016-05-30","Memorial Day"]
["2016-07-04","Independence Day"]
["2016-09-05","Labor Day"]
["2016-10-10","Columbus Day"]
["2016-11-11","Veterans Day"]
["2016-11-24","Thanksgiving Day"]
["2016-11-25","Friday after Thanksgiving"]
["2016-12-24","Christmas Eve"]
["2016-12-25","Christmas"]
["2016-12-26","Christmas, holiday"]
["2017-01-01","New Year's Day"]
["2017-01-02","New Year's Day, celebrated"]
["2017-01-16","Martin Luther King Day"]
["2017-02-20","President's Day"]
["2017-04-14","Good Friday"]
["2017-04-16","Easter"]
["2017-05-29","Memorial Day"]
["2017-07-04","Independence Day"]
["2017-09-04","Labor Day"]
["2017-10-09","Columbus Day"]
["2017-11-10","Veterans Day, celebrated"]
["2017-11-11","Veterans Day"]
["2017-11-23","Thanksgiving Day"]
["2017-11-24","Friday after Thanksgiving"]
["2017-12-24","Christmas Eve"]
["2017-12-25","Christmas"]
["2018-01-01","New Year's Day"]
["2018-01-15","Martin Luther King Day"]
["2018-02-19","President's Day"]
["2018-03-30","Good Friday"]
["2018-04-01","Easter"]
["2018-05-28","Memorial Day"]
["2018-07-04","Independence Day"]
["2018-09-03","Labor Day"]
["2018-10-08","Columbus Day"]
["2018-11-11","Veterans Day"]
["2018-11-12","Veterans Day, celebrated"]
["2018-11-22","Thanksgiving Day"]
["2018-11-23","Friday after Thanksgiving"]
["2018-12-24","Christmas Eve"]
["2018-12-25","Christmas"]
["2019-01-01","New Year's Day"]
["2019-01-21","Martin Luther King Day"]
["2019-02-18","President's Day"]
["2019-04-19","Good Friday"]
["2019-04-21","Easter"]
["2019-05-27","Memorial Day"]
["2019-07-04","Independence Day"]
["2019-09-02","Labor Day"]
["2019-10-14","Columbus Day"]
["2019-11-11","Veterans Day"]
["2019-11-28","Thanksgiving Day"]
["2019-11-29","Friday after Thanksgiving"]
["2019-12-24","Christmas Eve"]
["2019-12-25","Christmas"]
["2020-01-01","New Year's Day"]
["2020-01-20","Martin Luther King Day"]
["2020-02-17","President's Day"]
["2020-04-10","Good Friday"]
["2020-04-12","Easter"]
["2020-05-25","Memorial Day"]
["2020-07-03","Independence Day, celebrated"]
["2020-07-04","Independence Day"]
["2020-09-07","Labor Day"]
["2020-10-12","Columbus Day"]
["2020-11-11","Veterans Day"]
["2020-11-26","Thanksgiving Day"]
["2020-11-27","Friday after Thanksgiving"]
["2020-12-24","Christmas Eve"]
["2020-12-25","Christmas"]
["2021-01-01","New Year's Day"]
["2021-01-18","Martin Luther King Day"]
["2021-02-15","President's Day"]
["2021-04-02","Good Friday"]
["2021-04-04","Easter"]
["2021-05-31","Memorial Day"]
["2021-07-04","Independence Day"]
["2021-07-05","Independence Day, celebrated"]
["2021-09-06","Labor Day"]
["2021-10-11","Columbus Day"]
["2021-11-11","Veterans Day"]
["2021-11-25","Thanksgiving Day"]
["2021-11-26","Friday after Thanksgiving"]
["2021-12-23","Christmas Eve, celebrated"]
["2021-12-24","Christmas, holiday"]
["2021-12-25","Christmas"]

{"sheet":"AxisLabelList","index":33,"n_rows":118,"n_cols":14,"rows_kept":118,"cut":false,"hidden":false,"merged":[]}
["Measure End","Units",null,"Measure End","Units",null,null,null,null,null,null,"MeasureEnd",null,"MeasureEnd"]
["TempOa","Temperature",null,"TempOa","Temperature",null,null,null,null,null,null,"TempOa",null,"TempOa"]
["Temp","Temperature",null,"Temp","Temperature",null,null,null,null,null,null,"Temp",null,"Temp"]
["TempSP","Temperature",null,"TempSP","Temperature",null,null,null,null,null,null,"TempSP",null,"TempSP"]
["Occ","Temperature",null,"Occ","Status or Occupied Status",null,null,null,null,null,null,"Occ",null,"Occ"]
["%op","Damper Opening [%]",null,"%op","Opening [%]",null,null,null,null,null,null,"%op",null,"%op"]
["Rht%","Reheat [%]",null,"Rht%","Reheat [%]",null,null,null,null,null,null,"Rht%",null,"Rht%"]
["%op","Damper Opening [%]",null,"%","Outside Air [%]",null,null,null,null,null,null,"%",null,"%"]
["%op","Damper Opening [%]",null,"TempIn","Temperature",null,null,null,null,null,null,"TempIn",null,"TempIn"]
["%op","Damper Opening [%]",null,"TempOut","Temperature",null,null,null,null,null,null,"TempOut",null,"TempOut"]
["%","Outside Air [%]",null,"gpm","Water Flow",null,null,null,null,null,null,"gpm",null,"gpm"]
["TempIn","Temperature",null,"Amps","Current",null,null,null,null,null,null,"Amps",null,"Amps"]
["TempOut","Temperature",null,"kW","Power [kW]",null,null,null,null,null,null,"kW",null,"kW"]
["%op","Valve Opening [%]",null,"%Spd","Speed [%]",null,null,null,null,null,null,"%Spd",null,"%Spd"]
["gpm","Water Flow",null,"Hz","Frequency [Hz]",null,null,null,null,null,null,"Hz",null,"Hz"]
["TempIn","Temperature",null,"cfm","Air Flow",null,null,null,null,null,null,"cfm",null,"cfm"]
["TempOut","Temperature",null,"Status","Status or Occupied Status",null,null,null,null,null,null,"Status",null,"Status"]
["TempIn","Temperature",null,"DuctStcPres","Air Pressure",null,null,null,null,null,null,"DuctStcPres",null,"DuctStcPres"]
["TempOut","Temperature",null,"DuctStcPresSp","Air Pressure",null,null,null,null,null,null,"DuctStcPresSp",null,"DuctStcPresSp"]
["%op","Temperature",null,"TempRa","Temperature",null,null,null,null,null,null,"TempRa",null,"TempRa"]
["gpm","Water Flow",null,"TempMa","Temperature",null,null,null,null,null,null,"TempMa",null,"TempMa"]
["TempIn","Temperature",null,"TempSa","Temperature",null,null,null,null,null,null,"TempSa",null,"TempSa"]
["TempOut","Temperature",null,"TempSaSp","Temperature",null,null,null,null,null,null,"TempSaSp",null,"TempSaSp"]
["Amps","Current",null,"PresIn","Water Pressure",null,null,null,null,null,null,"PresIn",null,"PresIn"]
["kW","Power [kW]",null,"PresOut","Water Pressure",null,null,null,null,null,null,"PresOut",null,"PresOut"]
["%Spd","Speed [%]",null,"dPres","Water Differential Pressure",null,null,null,null,null,null,"dPres",null,"dPres"]
["Hz","Frequency [Hz]",null,"dPresSp","Water Differential Pressure",null,null,null,null,null,null,"dPresSp",null,"dPresSp"]
["cfm","Air Flow",null,"TempDiff","Temperature Difference",null,null,null,null,null,null,"TempDiff",null,"TempDiff"]
["Status","Status",null,"th","Therms",null,null,null,null,null,null,"th",null,"th"]
["Amps","Current",null,"th/hr","Therms per hour",null,null,null,null,null,null,"th/hr",null,"th/hr"]
["kW","Power [kW]",null,"kWh","Electricity Use [kWh]",null,null,null,null,null,null,"kWh",null,"kWh"]
["%Spd","Speed [%]"]
["Hz","Frequency [Hz]"]
["cfm","Air Flow"]
["Status","Status"]
["DuctStcPres","Air Pressure"]
["DuctStcPresSp","Air Pressure"]
["TempOa","Temperature"]
["TempRa","Temperature"]
["TempMa","Temperature"]
["TempSa","Temperature"]
["TempSaSp","Temperature"]
["Status","Status"]
["Amps","Current"]
["kW","Power [kW]"]
["%Spd","Speed [%]"]
["Hz","Frequency [Hz]"]
["PresIn","Water Pressure"]
["PresOut","Water Pressure"]
["gpm","Water Flow"]
["Status","Status"]
["TempIn","Temperature"]
["TempOut","Temperature"]
["dPres","Water Differential Pressure"]
["dPresSp","Water Differential Pressure"]
["TempDiff","Water Temperature Difference"]
["Amps","Current"]
["kW","Power [kW]"]
["%Spd","Speed [%]"]
["Hz","Frequency [Hz]"]
["PresIn","Water Pressure"]
["PresOut","Water Pressure"]
["gpm","Water Flow"]
["Status","Status"]
["TempIn","Temperature"]
["TempOut","Temperature"]
["dPres","Water Differential Pressure"]
["dPresSp","Water Differential Pressure"]
["TempDiff","Water Temperature Difference"]
["Amps","Current"]
["kW","Power [kW]"]
["PresIn","Water Pressure"]
["PresOut","Water Pressure"]
["gpm","Water Flow"]
["Status","Status"]
["th","Therms"]
["th/hr","Therms per hour"]
["TempIn","Temperature"]
["TempOut","Temperature"]
["TempSp","Temperature"]
["Status","Status"]
["Amps","Current"]
["kW","Power [kW]"]
["PresIn","Water Pressure"]
["PresOut","Water Pressure"]
["gpm","Water Flow"]
["Status","Status"]
["Amps","Current"]
["kW","Power [kW]"]
["%Spd","Speed [%]"]
["Hz","Frequency [Hz]"]
["Status","Status"]
["Amps","Current"]
["kW","Power [kW]"]
["TempIn","Temperature"]
["TempOut","Temperature"]
["Status","Status"]
["Amps","Current"]
["kW","Power [kW]"]
["PresIn","Water Pressure"]
["PresOut","Water Pressure"]
["gpm","Water Flow"]
["Status","Status"]
["Amps","Current"]
["kW","Power [kW]"]
["%Spd","Speed [%]"]
["Hz","Frequency [Hz]"]
["TempIn","Temperature"]
["TempOut","Temperature"]
["TempSp","Temperature"]
["TempIn","Temperature"]
["TempOut","Temperature"]
["TempSp","Temperature"]
["Status","Status"]
["th","therms"]
["th/hr","therms per hour"]
["kW","Power [kW] [kW]"]
["kWh","Electricity Use [kWh]"]